fUST/lending_fUST_20251125
["ID","MTS","AMOUNT","RATE_DAILY","PERIOD"]
[394830988,1764004248168,-515.509178,0.00013698,2]
[394830989,1764004248177,-190.65632246,0.00013698,2]
[394830990,1764004248187,-1634.69,0.00013698,2]
[394830991,1764004248197,-500.0,0.00013698,2]
[394830992,1764004248207,-500.0,0.00013698,2]
[394830993,1764004248217,-500.0,0.00013698,2]
[394830994,1764004248228,-529.86280411,0.00013698,2]
[394830995,1764004248238,-785.07,0.00013698,2]
[394830996,1764004248247,-500.0,0.00013698,2]
[394830997,1764004248257,-506.51080967,0.00013698,2]
[394830998,1764004248267,-517.18346443,0.00013698,2]
[394830999,1764004248277,-500.0,0.00013698,2]
[394831000,1764004248287,-1234.38,0.00013698,2]
[394831001,1764004248297,-500.0,0.00013698,2]
[394831002,1764004248307,-500.0,0.00013698,2]
[394831003,1764004248317,-500.0,0.00013698,2]
[394831004,1764004248326,-515.09057657,0.00013698,2]
[394831005,1764004248336,-500.0,0.00013698,2]
[394831006,1764004248346,-500.0,0.00013698,2]
[394831007,1764004248356,-512.00613536,0.00013698,2]
[394831008,1764004248367,-500.0,0.00013698,2]
[394831009,1764004248377,-500.0,0.00013698,2]
[394831010,1764004248389,-500.0,0.00013698,2]
[394831011,1764004248399,-1120.1,0.00013698,2]
[394831012,1764004248409,-1429.87,0.00013698,2]
[394831013,1764004248419,-500.0,0.00013698,2]
[394831014,1764004248429,-1127.95,0.00013698,2]
[394831015,1764004248439,-500.0,0.00013698,2]
[394831016,1764004248449,-500.0,0.00013698,2]
[394831017,1764004248459,-500.0,0.00013698,2]
[394831018,1764004248468,-517.80243277,0.00013698,2]
[394831019,1764004248478,-511.65285772,0.00013698,2]
[394831020,1764004248488,-646.06293318,0.00013698,2]
[394831021,1764004248498,-500.0,0.00013698,2]
[394831022,1764004248508,-502.55190703,0.00013698,2]
[394831023,1764004248520,-510.56872577,0.00013698,2]
[394831024,1764004248530,-500.0,0.00013698,2]
[394831025,1764004248539,-532.69557291,0.00013698,2]
[394831026,1764004248550,-709.58,0.00013698,2]
[394831027,1764004248559,-500.0,0.00013698,2]
[394831028,1764004248569,-500.0,0.00013698,2]
[394831029,1764004248580,-7302.49,0.00013698,2]
[394831030,1764004248591,-500.0,0.00013698,2]
[394831031,1764004248601,-500.0,0.00013698,2]
[394831032,1764004248611,-500.0,0.00013698,2]
[394831033,1764004248621,-500.0,0.00013698,2]
[394831034,1764004248631,-3260.62,0.00013698,2]
[394831035,1764004248643,-525.75990747,0.00013698,2]
[394831036,1764004248816,-238.81755509,0.00013698,2]
[394831037,1764004248827,-181.058826,0.00013698,2]
[394831038,1764004248837,-358.33225532,0.00013698,2]
[394831039,1764004248846,-181.058826,0.00013698,2]
[394831040,1764004248862,-500.0,0.00013698,2]
[394831041,1764004248872,-181.058826,0.00013698,2]
[394831042,1764004248881,-500.0,0.00013698,2]
[394831043,1764004248891,-181.058826,0.00013698,2]
[394831044,1764004248901,-500.0,0.00013698,2]
[394831045,1764004248910,-500.0,0.00013698,2]
[394831046,1764004248919,-181.058826,0.00013698,2]
[394831047,1764004248930,-725.14,0.00013698,2]
[394831048,1764004248939,-1698.21,0.00013698,2]
[394831049,1764004248949,-181.058826,0.00013698,2]
[394831050,1764004248958,-2884.65,0.00013698,2]
[394831051,1764004248968,-500.0,0.00013698,2]
[394831052,1764004248977,-568.183752,0.00013698,2]
[394831053,1764004248987,-181.058826,0.00013698,2]
[394831054,1764004248997,-531.59130446,0.00013698,2]
[394831055,1764004249006,-510.6562963,0.00013698,2]
[394831056,1764004249015,-181.058817,0.00013698,2]
[394831057,1764004249024,-500.0,0.00013698,2]
[394831058,1764004249033,-559.91,0.00013698,2]
[394831059,1764004249043,-538.06,0.00013698,2]
[394831060,1764004249052,-500.0,0.00013698,2]
[394831061,1764004249061,-500.0,0.00013698,2]
[394831062,1764004249071,-512.25355042,0.00013698,2]
[394831063,1764004249080,-1309.7,0.00013698,2]
[394831065,1764004249089,-550.86,0.00013698,2]
[394831067,1764004249099,-500.0,0.00013698,2]
[394831069,1764004249108,-500.0,0.00013698,2]
[394831072,1764004249117,-500.0,0.00013698,2]
[394831073,1764004249126,-500.0,0.00013698,2]
[394831075,1764004249136,-239.211571,0.00013698,2]
[394831077,1764004249145,-509.23591307,0.00013698,2]
[394831080,1764004249154,-529.17124937,0.00013698,2]
[394831082,1764004249163,-239.211571,0.00013698,2]
[394831084,1764004249173,-782.41,0.00013698,2]
[394831086,1764004249181,-721.01,0.00013698,2]
[394831088,1764004249190,-239.211571,0.00013698,2]
[394831090,1764004249199,-500.0,0.00013698,2]
[394831091,1764004249208,-239.211571,0.00013698,2]
[394831094,1764004249218,-500.0,0.00013698,2]
[394831096,1764004249227,-755.41,0.00013698,2]
[394831097,1764004249236,-546.76984095,0.00013698,2]
[394831099,1764004249245,-500.0,0.00013698,2]
[394831101,1764004249254,-239.211571,0.00013698,2]
[394831103,1764004249264,-500.0,0.00013698,2]
[394831105,1764004249273,-239.211571,0.00013698,2]
[394831107,1764004249282,-251.75576511,0.00013698,2]
[394831110,1764004249292,-239.211571,0.00013698,2]
[394831112,1764004249301,-239.211566,0.00013698,2]
[394831114,1764004249310,-500.0,0.00013698,2]
[394831116,1764004249319,-1156.84,0.00013698,2]
[394831118,1764004249328,-500.0,0.00013698,2]
[394831120,1764004249337,-538.46519063,0.00013698,2]
[394831121,1764004249346,-1642.64,0.00013698,2]
[394831124,1764004249356,-1083.41,0.00013698,2]
[394831126,1764004249365,-500.0,0.00013698,2]
[394831128,1764004249376,-1248.84,0.00013698,2]
[394831130,1764004249386,-500.0,0.00013698,2]
[394831132,1764004249396,-565.43,0.00013698,2]
[394831134,1764004249405,-1486.81,0.00013698,2]
[394831135,1764004249415,-524.73092181,0.00013698,2]
[394831136,1764004249424,-534.95633427,0.00013698,2]
[394831137,1764004249433,-500.0,0.00013698,2]
[394831138,1764004249442,-46496.1,0.00013698,2]
[394831139,1764004249451,-500.0,0.00013698,2]
[394831140,1764004249461,-500.0,0.00013698,2]
[394831141,1764004249471,-352.2552027,0.00013698,2]
[394831142,1764004249480,-4728.84,0.00013698,2]
[394831143,1764004249489,-500.0,0.00013698,2]
[394831144,1764004249499,-500.0,0.00013698,2]
[394831145,1764004249511,-943.26,0.00013698,2]
[394831147,1764004249521,-500.0,0.00013698,2]
[394831149,1764004249530,-500.0,0.00013698,2]
[394831151,1764004249539,-598.75511024,0.00013698,2]
[394831153,1764004249548,-2335.8,0.00013698,2]
[394831155,1764004249559,-500.0,0.00013698,2]
[394831157,1764004249571,-500.0,0.00013698,2]
[394831159,1764004249580,-500.0,0.00013698,2]
[394831161,1764004249590,-473.13052899,0.00013698,2]
[394831163,1764004249600,-1992.21,0.00013698,2]
[394831165,1764004249610,-1992.21,0.00013698,2]
[394831167,1764004249619,-1992.21,0.00013698,2]
[394831169,1764004249628,-1992.21,0.00013698,2]
[394831171,1764004249638,-1992.21,0.00013698,2]
[394831173,1764004249647,-1992.21,0.00013698,2]
[394831175,1764004249656,-552.83,0.00013698,2]
[394831177,1764004249664,-557.77894861,0.00013698,2]
[394831179,1764004249674,-1992.21,0.00013698,2]
[394831181,1764004249684,-1755.783485,0.00013698,2]
[394831183,1764004249692,-1992.21,0.00013698,2]
[394831185,1764004249701,-1329.51,0.00013698,2]
[394831187,1764004249710,-1755.783485,0.00013698,2]
[394831189,1764004249719,-1992.21,0.00013698,2]
[394831191,1764004249729,-1992.21,0.00013698,2]
[394831193,1764004249738,-500.0,0.00013698,2]
[394831195,1764004249749,-1992.21,0.00013698,2]
[394831197,1764004249758,-1992.21,0.00013698,2]
[394831199,1764004249769,-1755.783485,0.00013698,2]
[394831201,1764004249778,-500.0,0.00013698,2]
[394831203,1764004249787,-1992.21,0.00013698,2]
[394831205,1764004249796,-1755.783485,0.00013698,2]
[394831207,1764004249805,-1992.21,0.00013698,2]
[394831209,1764004249815,-1992.21,0.00013698,2]
[394831211,1764004249828,-1992.21,0.00013698,2]
[394831213,1764004249838,-1992.21,0.00013698,2]
[394831215,1764004249847,-1992.21,0.00013698,2]
[394831217,1764004249857,-1755.783485,0.00013698,2]
[394831219,1764004249867,-1992.21,0.00013698,2]
[394831221,1764004249876,-1755.783485,0.00013698,2]
[394831223,1764004249886,-1992.21,0.00013698,2]
[394831225,1764004249895,-1992.21,0.00013698,2]
[394831227,1764004249904,-1529.12,0.00013698,2]
[394831229,1764004249913,-500.0,0.00013698,2]
[394831231,1764004249923,-1992.21,0.00013698,2]
[394831233,1764004249933,-1992.21,0.00013698,2]
[394831235,1764004249942,-1992.30060867,0.00013698,2]
[394831237,1764004249951,-1755.783485,0.00013698,2]
[394831239,1764004249960,-1755.783493,0.00013698,2]
[394831240,1764004249969,-500.0,0.00013698,2]
[394831242,1764004249978,-500.0,0.00013698,2]
[394831245,1764004249988,-500.0,0.00013698,2]
[394831246,1764004249997,-2284.25,0.00013698,2]
[394831248,1764004250006,-283.854515,0.00013698,2]
[394831251,1764004250016,-283.854515,0.00013698,2]
[394831253,1764004250026,-151.0,0.00013698,2]
[394831255,1764004250035,-259.835632,0.00013698,2]
[394831257,1764004250044,-3021.36,0.00013698,2]
[394831259,1764004250053,-283.854515,0.00013698,2]
[394831260,1764004250063,-2274.86,0.00013698,2]
[394831262,1764004250072,-283.854515,0.00013698,2]
[394831264,1764004250081,-511.93603533,0.00013698,2]
[394831266,1764004250090,-500.0,0.00013698,2]
[394831269,1764004250100,-283.854515,0.00013698,2]
[394831271,1764004250109,-283.854515,0.00013698,2]
[394831273,1764004250118,-283.854515,0.00013698,2]
[394831275,1764004250127,-283.854522,0.00013698,2]
[394831277,1764004250136,-500.0,0.00013698,2]
[394831278,1764004250146,-500.0,0.00013698,2]
[394831281,1764004250155,-500.0,0.00013698,2]
[394831283,1764004250164,-1845.56,0.00013698,2]
[394831285,1764004250173,-524.89817613,0.00013698,2]
[394831287,1764004250182,-1675.45,0.00013698,2]
[394831289,1764004250191,-500.0,0.00013698,2]
[394831291,1764004250200,-526.48657727,0.00013698,2]
[394831293,1764004250210,-1307.69,0.00013698,2]
[394831295,1764004250219,-345.30861255,0.00013698,2]
[394831296,1764004250228,-500.0,0.00013698,2]
[394831298,1764004250237,-1818.85,0.00013698,2]
[394831300,1764004250246,-500.0,0.00013698,2]
[394831302,1764004250255,-509.01291926,0.00013698,2]
[394831305,1764004250264,-500.0,0.00013698,2]
[394831306,1764004250273,-802.92,0.00013698,2]
[394831308,1764004250282,-2435.13,0.00013698,2]
[394831310,1764004250291,-1832.03,0.00013698,2]
[394831313,1764004250302,-500.0,0.00013698,2]
[394831315,1764004250311,-2287.76,0.00013698,2]
[394831316,1764004250320,-500.0,0.00013698,2]
[394831319,1764004250329,-508.35691745,0.00013698,2]
[394831320,1764004250338,-500.0,0.00013698,2]
[394831322,1764004250347,-500.0,0.00013698,2]
[394831324,1764004250357,-500.0,0.00013698,2]
[394831326,1764004250367,-500.0,0.00013698,2]
[394831329,1764004250376,-500.0,0.00013698,2]
[394831330,1764004250386,-941.04,0.00013698,2]
[394831332,1764004250397,-500.0,0.00013698,2]
[394831334,1764004250406,-500.0,0.00013698,2]
[394831336,1764004250415,-538.24144387,0.00013698,2]
[394831338,1764004250423,-518.20537935,0.00013698,2]
[394831340,1764004250433,-500.0,0.00013698,2]
[394831342,1764004250442,-505.34807735,0.00013698,2]
[394831345,1764004250451,-500.0,0.00013698,2]
[394831347,1764004250462,-587.76,0.00013698,2]
[394831349,1764004250471,-180.67704447,0.00013698,2]
[394831351,1764004250481,-500.0,0.00013698,2]
[394831353,1764004250490,-500.0,0.00013698,2]
[394831355,1764004250499,-500.0,0.00013698,2]
[394831357,1764004250509,-549.77,0.00013698,2]
[394831359,1764004250520,-1488.45,0.00013698,2]
[394831361,1764004250530,-500.0,0.00013698,2]
[394831363,1764004250539,-555.31,0.00013698,2]
[394831365,1764004250550,-500.0,0.00013698,2]
[394831367,1764004250560,-500.0,0.00013698,2]
[394831369,1764004250569,-511.27336598,0.00013698,2]
[394831371,1764004250579,-500.0,0.00013698,2]
[394831373,1764004250589,-450.49236705,0.00013698,2]
[394831376,1764004250610,-49.50763295,0.00013698,2]
[394831378,1764004250619,-500.0,0.00013698,2]
[394831380,1764004250628,-519.17767858,0.00013698,2]
[394831382,1764004250637,-523.71106155,0.00013698,2]
[394831384,1764004250646,-500.0,0.00013698,2]
[394831386,1764004250655,-500.0,0.00013698,2]
[394831388,1764004250664,-151.0,0.00013698,2]
[394831390,1764004250673,-164.69516,0.00013698,2]
[394831392,1764004250683,-1511.7,0.00013698,2]
[394831394,1764004250691,-500.0,0.00013698,2]
[394831396,1764004250700,-500.0,0.00013698,2]
[394831398,1764004250710,-5939.65,0.00013698,2]
[394831400,1764004250718,-503.10830197,0.00013698,2]
[394831402,1764004250727,-153.43513287,0.00013698,2]
[394831404,1764004250737,-500.0,0.00013698,2]
[394831406,1764004250745,-539.75639268,0.00013698,2]
[394831408,1764004250754,-503.27356533,0.00013698,2]
[394831410,1764004250763,-3214.88,0.00013698,2]
[394831412,1764004250772,-500.0,0.00013698,2]
[394831414,1764004250780,-1360.297015,0.00013698,2]
[394831416,1764004250790,-500.0,0.00013698,2]
[394831418,1764004250799,-1360.297015,0.00013698,2]
[394831420,1764004250808,-582.97,0.00013698,2]
[394831422,1764004250817,-170.958768,0.00013698,2]
[394831424,1764004250826,-1360.297015,0.00013698,2]
[394831426,1764004250836,-523.46813272,0.00013698,2]
[394831428,1764004250845,-170.958768,0.00013698,2]
[394831430,1764004250855,-1360.297015,0.00013698,2]
[394831432,1764004250864,-151.0,0.00013698,2]
[394831434,1764004250873,-170.958768,0.00013698,2]
[394831436,1764004250883,-151.0,0.00013698,2]
[394831438,1764004250893,-500.0,0.00013698,2]
[394831440,1764004250902,-1360.297015,0.00013698,2]
[394831442,1764004250911,-170.958768,0.00013698,2]
[394831444,1764004250920,-1360.297015,0.00013698,2]
[394831446,1764004250929,-3066.65,0.00013698,2]
[394831448,1764004250938,-500.0,0.00013698,2]
[394831450,1764004250947,-170.958768,0.00013698,2]
[394831451,1764004250956,-1360.297015,0.00013698,2]
[394831452,1764004250965,-170.958768,0.00013698,2]
[394831453,1764004250974,-508.9897251,0.00013698,2]
[394831454,1764004250983,-1360.297016,0.00013698,2]
[394831455,1764004250992,-500.0,0.00013698,2]
[394831456,1764004251000,-4739.21,0.00013698,2]
[394831457,1764004251009,-170.958768,0.00013698,2]
[394831458,1764004251018,-506.16,0.00013698,2]
[394831459,1764004251027,-170.958761,0.00013698,2]
[394831460,1764004251036,-841.189342,0.00013698,2]
[394831461,1764004251045,-841.189342,0.00013698,2]
[394831462,1764004251055,-500.0,0.00013698,2]
[394831463,1764004251063,-3828.13,0.00013698,2]
[394831465,1764004251072,-841.189342,0.00013698,2]
[394831467,1764004251081,-841.189342,0.00013698,2]
[394831469,1764004251091,-3126.65,0.00013698,2]
[394831471,1764004251100,-170.568834,0.00013698,2]
[394831473,1764004251109,-841.189342,0.00013698,2]
[394831475,1764004251119,-170.568834,0.00013698,2]
[394831477,1764004251127,-841.189342,0.00013698,2]
[394831479,1764004251137,-529.21617702,0.00013698,2]
[394831481,1764004251146,-1030.76,0.00013698,2]
[394831483,1764004251155,-170.568834,0.00013698,2]
[394831485,1764004251164,-1030.76,0.00013698,2]
[394831486,1764004251176,-170.568834,0.00013698,2]
[394831488,1764004251194,-500.0,0.00013698,2]
[394831491,1764004251203,-841.189342,0.00013698,2]
[394831493,1764004251212,-1030.76,0.00013698,2]
[394831495,1764004251222,-1030.76,0.00013698,2]
[394831497,1764004251231,-841.189347,0.00013698,2]
[394831498,1764004251239,-1030.76,0.00013698,2]
[394831500,1764004251249,-1030.76,0.00013698,2]
[394831502,1764004251258,-1030.76,0.00013698,2]
[394831504,1764004251269,-170.568834,0.00013698,2]
[394831506,1764004251278,-1030.76,0.00013698,2]
[394831508,1764004251288,-170.568834,0.00013698,2]
[394831510,1764004251297,-1005.28,0.00013698,2]
[394831512,1764004251307,-1030.76,0.00013698,2]
[394831514,1764004251316,-500.0,0.00013698,2]
[394831516,1764004251325,-1030.76,0.00013698,2]
[394831519,1764004251335,-1030.76,0.00013698,2]
[394831521,1764004251344,-1030.76,0.00013698,2]
[394831523,1764004251353,-294.74308617,0.00013698,2]
[394831524,1764004251363,-170.568834,0.00013698,2]
[394831527,1764004251373,-1030.76,0.00013698,2]
[394831528,1764004251382,-170.568832,0.00013698,2]
[394831531,1764004251393,-1030.76,0.00013698,2]
[394831532,1764004251402,-151.0,0.00013698,2]
[394831534,1764004251411,-1030.76,0.00013698,2]
[394831536,1764004251421,-151.0,0.00013698,2]
[394831539,1764004251430,-1030.76,0.00013698,2]
[394831541,1764004251439,-1030.76,0.00013698,2]
[394831543,1764004251449,-500.0,0.00013698,2]
[394831545,1764004251458,-1030.76,0.00013698,2]
[394831546,1764004251469,-1030.76,0.00013698,2]
[394831549,1764004251479,-530.37167291,0.00013698,2]
[394831551,1764004251488,-1030.76,0.00013698,2]
[394831553,1764004251498,-151.0,0.00013698,2]
[394831555,1764004251510,-1030.76,0.00013698,2]
[394831557,1764004251519,-151.0,0.00013698,2]
[394831559,1764004251528,-1030.76,0.00013698,2]
[394831561,1764004251537,-1030.76,0.00013698,2]
[394831562,1764004251547,-500.0,0.00013698,2]
[394831565,1764004251556,-500.0,0.00013698,2]
[394831567,1764004251566,-1030.96294402,0.00013698,2]
[394831569,1764004251575,-151.0,0.00013698,2]
[394831571,1764004251586,-151.0,0.00013698,2]
[394831572,1764004251595,-524.18317279,0.00013698,2]
[394831574,1764004251604,-1447.8,0.00013698,2]
[394831576,1764004251613,-616.69,0.00013698,2]
[394831578,1764004251622,-500.0,0.00013698,2]
[394831580,1764004251631,-500.0,0.00013698,2]
[394831582,1764004251642,-500.0,0.00013698,2]
[394831585,1764004251651,-500.0,0.00013698,2]
[394831587,1764004251660,-500.0,0.00013698,2]
[394831589,1764004251670,-417.13183414,0.00013698,2]
[394831591,1764004251679,-813.66,0.00013698,2]
[394831593,1764004251688,-500.0,0.00013698,2]
[394831594,1764004251697,-687.47,0.00013698,2]
[394831596,1764004251706,-500.0,0.00013698,2]
[394831599,1764004251717,-647.71,0.00013698,2]
[394831601,1764004251726,-500.0,0.00013698,2]
[394831610,1764004251873,-500.0,0.00013698,2]
[394831611,1764004251883,-504.99256376,0.00013698,2]
[394831613,1764004251895,-500.0,0.00013698,2]
[394831614,1764004251904,-500.0,0.00013698,2]
[394831616,1764004251913,-500.0,0.00013698,2]
[394831618,1764004251922,-882.07409644,0.00013698,2]
[394839884,1764004360534,208.9,0.0002,30]
[394839885,1764004625252,161.53755189,0.0002,30]
[394839890,1764005196540,-168.19308826,8.071e-05,2]
[394839893,1764005394356,245.80691174,7.831e-05,2]
[394839894,1764005409784,245.80691174,7.831e-05,2]
[394839938,1764005432564,-150.0,7.871e-05,2]
[394839940,1764005432575,-150.0,7.95e-05,2]
[394839941,1764005432585,-414.0,8.748e-05,2]
[394839942,1764005432596,-164.761643,9.196e-05,2]
[394839943,1764005432607,-421.14856242,9.662e-05,2]
[394839944,1764005432617,-177.0,9.95e-05,2]
[394839945,1764005432627,-217.16454108,0.00010232,2]
[394839946,1764005432637,-300.0,0.00010415,2]
[394839947,1764005432647,-480.0,0.00010415,2]
[394839948,1764005432656,-297177.33817687,0.00010416,2]
[394839954,1764005433181,150.0,7.792e-05,2]
[394839986,1764005438462,-200.87880561,0.00010061,2]
[394839988,1764005438472,-72190.28986734,0.00010416,2]
[394839993,1764005438516,-177493.30219646,0.00010416,2]
[394840478,1764005444806,-200.87880561,9.96e-05,2]
[394840480,1764005444815,-38748.41866606,0.00010416,2]
[394840645,1764005446727,-441.315,0.00010416,2]
[394840647,1764005446739,-303949.33609327,0.00010416,2]
[394840649,1764005446748,-500.0,0.00010473,2]
[394840651,1764005446758,-500.0,0.00010473,2]
[394840653,1764005446767,-500.0,0.00010473,2]
[394840655,1764005446776,-500.0,0.00010473,2]
[394840657,1764005446786,-500.0,0.00010473,2]
[394840659,1764005446796,-500.0,0.00010514,2]
[394840661,1764005446806,-303.88651285,0.00010514,2]
[394840663,1764005446816,-500.0,0.00010514,2]
[394840665,1764005446825,-500.0,0.00010514,2]
[394840667,1764005446835,-500.0,0.00010514,2]
[394840669,1764005446845,-500.0,0.00010514,2]
[394840671,1764005446854,-500.0,0.00010514,2]
[394840673,1764005446864,-500.0,0.00010514,2]
[394840675,1764005446874,-500.0,0.00010514,2]
[394840677,1764005446888,-500.0,0.00010514,2]
[394840679,1764005446898,-500.0,0.00010514,2]
[394840681,1764005446908,-500.0,0.00010514,2]
[394840683,1764005446918,-500.0,0.00010514,2]
[394840685,1764005446929,-500.0,0.00010514,2]
[394840687,1764005446938,-500.0,0.00010514,2]
[394840689,1764005446948,-500.0,0.00010514,2]
[394840691,1764005446958,-500.0,0.00010514,2]
[394840693,1764005446968,-500.0,0.00010514,2]
[394840695,1764005446978,-500.0,0.00010514,2]
[394840697,1764005446987,-500.0,0.00010514,2]
[394840699,1764005446996,-500.0,0.00010514,2]
[394840702,1764005447006,-500.0,0.00010514,2]
[394840705,1764005447015,-500.0,0.00010514,2]
[394840708,1764005447025,-500.0,0.00010514,2]
[394840710,1764005447033,-500.0,0.00010514,2]
[394840712,1764005447042,-500.0,0.00010514,2]
[394840714,1764005447050,-500.0,0.00010514,2]
[394840716,1764005447059,-500.0,0.00010514,2]
[394840718,1764005447068,-500.0,0.00010514,2]
[394840720,1764005447078,-500.0,0.00010514,2]
[394840722,1764005447087,-500.0,0.00010514,2]
[394840723,1764005447096,-500.0,0.00010514,2]
[394840724,1764005447105,-500.0,0.00010514,2]
[394840725,1764005447116,-350.00000001,0.00010514,2]
[394840726,1764005447125,-500.0,0.00010514,2]
[394840727,1764005447135,-500.0,0.00010514,2]
[394840728,1764005447144,-500.0,0.00010514,2]
[394840729,1764005447153,-500.0,0.00010514,2]
[394840730,1764005447162,-500.0,0.00010514,2]
[394840731,1764005447171,-500.0,0.00010514,2]
[394840732,1764005447181,-500.0,0.00010514,2]
[394840733,1764005447191,-500.0,0.00010514,2]
[394840734,1764005447200,-500.0,0.00010514,2]
[394840736,1764005447209,-500.0,0.00010514,2]
[394840738,1764005447218,-500.0,0.00010514,2]
[394840739,1764005447228,-500.0,0.00010514,2]
[394840741,1764005447237,-500.0,0.00010514,2]
[394840743,1764005447247,-500.0,0.00010514,2]
[394840745,1764005447256,-500.0,0.00010514,2]
[394840747,1764005447265,-500.0,0.00010514,2]
[394840748,1764005447275,-500.0,0.00010514,2]
[394840749,1764005447285,-500.0,0.00010514,2]
[394840750,1764005447295,-500.0,0.00010514,2]
[394840751,1764005447305,-304.38749535,0.00010514,2]
[394840752,1764005447316,-500.0,0.00010514,2]
[394840753,1764005447326,-500.0,0.00010514,2]
[394840754,1764005447336,-500.0,0.00010514,2]
[394840755,1764005447346,-500.0,0.00010514,2]
[394840756,1764005447356,-500.0,0.00010514,2]
[394840757,1764005447368,-500.0,0.00010514,2]
[394840758,1764005447378,-500.0,0.00010514,2]
[394840759,1764005447387,-500.0,0.00010514,2]
[394840760,1764005447397,-500.0,0.00010514,2]
[394840761,1764005447412,-500.0,0.00010514,2]
[394840762,1764005447422,-500.0,0.00010514,2]
[394840763,1764005447430,-500.0,0.00010514,2]
[394840764,1764005447440,-500.0,0.00010514,2]
[394840765,1764005447449,-500.0,0.00010514,2]
[394840766,1764005447460,-500.0,0.00010514,2]
[394840767,1764005447469,-500.0,0.00010514,2]
[394840768,1764005447479,-200.0,0.00010514,2]
[394840769,1764005447489,-50000.0,0.00010514,2]
[394840770,1764005447499,-195.0,0.00010514,2]
[394840771,1764005447509,-283.39829347,0.00010515,2]
[394840772,1764005447518,-500.0,0.00010515,2]
[394840773,1764005447528,-500.0,0.00010515,2]
[394840774,1764005447537,-651.30740841,0.00010515,2]
[394840775,1764005447546,-500.0,0.00010515,2]
[394840776,1764005447556,-500.0,0.00010515,2]
[394840777,1764005447565,-500.0,0.00010515,2]
[394840778,1764005447575,-160.858,0.00010518,2]
[394840779,1764005447584,-500.0,0.00010573,2]
[394840780,1764005447595,-300.0,0.00010623,2]
[394840781,1764005447605,-300.0,0.00010827,2]
[394840782,1764005447619,-300.0,0.00010827,2]
[394840783,1764005447628,-300.0,0.00010827,2]
[394840784,1764005447638,-300.0,0.00010827,2]
[394840785,1764005447648,-300.0,0.00010827,2]
[394840786,1764005447658,-300.0,0.00010827,2]
[394840787,1764005447668,-300.0,0.00010827,2]
[394840788,1764005447678,-300.0,0.00010827,2]
[394840789,1764005447687,-300.0,0.00010827,2]
[394840790,1764005447696,-300.0,0.00010827,2]
[394840791,1764005447706,-300.0,0.00010827,2]
[394840792,1764005447716,-300.0,0.00010827,2]
[394840793,1764005447726,-300.0,0.00010827,2]
[394840794,1764005447735,-300.0,0.00010827,2]
[394840795,1764005447745,-500.0,0.00010959,2]
[394840796,1764005447756,-500.0,0.00010959,2]
[394840797,1764005447766,-500.0,0.00010959,2]
[394840798,1764005447776,-500.0,0.00010959,2]
[394840799,1764005447785,-500.0,0.00010959,2]
[394840800,1764005447795,-500.0,0.00010959,2]
[394840801,1764005447805,-500.0,0.00010959,2]
[394840802,1764005447815,-500.0,0.00010959,2]
[394840803,1764005447824,-380.30477979,0.00010959,2]
[394840804,1764005447833,-500.0,0.00010959,2]
[394840805,1764005447843,-500.0,0.00010959,2]
[394840806,1764005447852,-500.0,0.00010959,2]
[394840807,1764005448056,-500.0,0.00010959,2]